bitfinex-derivatives/quotes_ETHF0:USTF0_20210406
["timestamp","ask_amount","ask_price","bid_price","bid_amount"]
[1617725650228,2.6275,2093.8,2093.3,5.98]
[1617725650829,13.527,2094.0,2093.3,5.98]
[1617725651630,13.527,2094.0,2093.9,2.90695]
[1617725651829,13.527,2094.0,2093.9,5.32595]
[1617725652030,2.90695,2094.1,2093.9,11.24595]
[1617725652433,3.87365,2094.1,2093.9,11.24595]
[1617725652832,2.90695,2094.1,2093.9,11.24595]
[1617725655137,2.90695,2094.1,2093.9,8.82695]
[1617725655334,2.90695,2094.1,2093.9,5.92]
[1617725655534,6.00695,2094.1,2093.9,5.92]
[1617725655735,6.00695,2094.1,2093.4,2.90695]
[1617725655933,6.89515,2094.1,2094.0,5.94]
[1617725656138,6.89515,2094.1,2094.0,5.7071]
[1617725656334,6.89515,2094.1,2093.5,5.93]
[1617725656536,7.84875,2094.1,2093.4,2.90695]
[1617725656734,6.89515,2094.1,2094.0,5.7678]
[1617725656934,6.89515,2094.1,2093.4,2.90695]
[1617725656935,5.79515,2094.1,2093.5,5.86]
[1617725657134,4.00695,2094.1,2094.0,5.94]
[1617725657536,2.90695,2094.1,2093.5,5.85]
[1617725657737,59.0907,2094.3,2093.7,2.90695]
[1617725657934,59.0907,2094.3,2094.0,5.8]
[1617725658135,59.0907,2094.3,2093.8,3.26]
[1617725658335,60.1907,2094.3,2093.8,3.26]
[1617725658535,60.1907,2094.3,2094.1,5.96]
[1617725658740,60.1907,2094.3,2093.8,5.84]
[1617725659437,90.1907,2094.3,2092.3,5.76]
[1617725659841,92.1907,2094.3,2093.9,5.81]
[1617725660038,92.1907,2094.3,2092.4,8.79695]
[1617725660242,12.5673,2094.2,2092.4,8.79695]
[1617725660439,32.0,2094.1,2092.4,2.90695]
[1617725660637,36.6074,2094.1,2092.4,2.90695]
[1617725660838,36.6074,2094.1,2092.5,5.81]
[1617725661637,2.90695,2092.6,2092.5,5.81]
[1617725661838,5.66375,2092.6,2092.5,5.81]
[1617725664439,5.66375,2092.6,2091.4,5.9]
[1617725664839,5.66375,2092.6,2092.5,5.97]
[1617725665040,5.66375,2092.6,2091.4,5.83]
[1617725665444,5.66375,2092.6,2092.5,5.9]
[1617725665640,5.66375,2092.6,2091.5,5.93]
[1617725665840,2.7568,2092.6,2091.7,2.90695]
[1617725666041,75.1113,2093.0,2092.5,5.52]
[1617725666242,75.1113,2093.0,2092.4,2.5691]
[1617725666643,75.1113,2093.0,2092.5,5.78]
[1617725666842,1.1,2093.8,2092.5,5.78]
[1617725667442,13.0288,2093.9,2092.5,5.78]
[1617725667843,13.0288,2093.9,2093.0,2.90695]
[1617725668044,13.0288,2093.9,2093.0,5.02845]
[1617725668243,13.0288,2093.9,2093.1,5.75]
[1617725669845,2.90695,2093.2,2093.1,5.75]
[1617725670647,13.0288,2093.9,2093.1,5.75]
[1617725671847,13.0288,2093.9,2093.8,2.90695]
[1617725672046,13.0288,2093.9,2093.8,5.57705]
[1617725672246,13.0288,2093.9,2093.8,11.34705]
[1617725672845,13.0288,2093.9,2093.8,8.4401]
[1617725673747,15.93575,2093.9,2093.8,8.4401]
[1617725674747,17.03575,2093.9,2093.8,8.4401]
[1617725675148,15.93575,2093.9,2093.8,8.4401]
[1617725675751,15.93575,2093.9,2093.8,11.34705]
[1617725676951,17.03575,2093.9,2093.8,11.34705]
[1617725677352,17.03575,2093.9,2093.8,8.4401]
[1617725678452,15.93575,2093.9,2093.8,8.4401]
[1617725680352,17.03575,2093.9,2093.8,8.4401]
[1617725683153,19.66425,2093.9,2093.8,5.77]
[1617725683556,19.66425,2093.9,2092.4,5.87]
[1617725683754,19.66425,2093.9,2093.8,5.73]
[1617725684156,49.66425,2093.9,2092.1,0.5]
[1617725684356,49.66425,2093.9,2091.6,4.86606932]
[1617725684555,49.66425,2093.9,2091.5,4.86479459]
[1617725684956,51.66425,2093.9,2091.7,5.77]
[1617725685156,21.66425,2093.9,2091.4,7.52959798]
[1617725685356,21.66425,2093.9,2091.6,3.06]
[1617725685556,19.66425,2093.9,2091.8,5.76]
[1617725685756,19.66425,2093.9,2091.6,6.85974486]
[1617725685956,14.1288,2093.9,2092.7,2.90695]
[1617725686158,14.1288,2093.9,2092.7,5.92485]
[1617725686356,14.1288,2093.9,2092.8,5.44]
[1617725687858,2.90695,2092.9,2092.8,5.44]
[1617725691661,2.90695,2092.9,2091.8,5.96]
[1617725691861,14.1288,2093.9,2092.8,5.89]
[1617725692061,30.0,2093.8,2092.8,5.89]
[1617725692261,31.1,2093.8,2091.8,5.76]
[1617725692462,2.0,2093.7,2092.9,5.83]
[1617725692662,33.1,2093.7,2092.9,5.83]
[1617725692863,33.1,2093.7,2091.8,5.89]
[1617725693060,33.1,2093.7,2093.0,0.14]
[1617725693462,33.1,2093.7,2091.9,5.84]
[1617725693662,33.1,2093.7,2093.1,3.51]
[1617725693865,2.90695,2093.2,2093.1,3.51]
[1617725694063,4.00695,2093.2,2092.4,2.90695]
[1617725694264,4.00695,2093.2,2093.1,5.94]
[1617725694663,4.00695,2093.2,2092.4,2.90695]
[1617725694864,4.00695,2093.2,2093.1,5.9]
[1617725695263,4.00695,2093.2,2092.5,5.99]
[1617725695462,4.00695,2093.2,2091.3,6.85644668]
[1617725695664,34.00695,2093.2,2091.3,4.85644668]
[1617725695864,31.1,2093.2,2091.7,2.90695]
[1617725696066,2.0,2093.1,2091.7,2.90695]
[1617725696268,33.1,2093.1,2088.5,1.1]
[1617725696467,33.1,2093.1,2088.2,5.098]
[1617725696468,77.9514,2091.7,2091.2,4.86379104]
[1617725696666,30.0,2091.6,2091.2,4.86379104]
[1617725696866,30.0,2091.6,2088.2,5.098]
[1617725696867,31.1,2091.6,2090.1,5.96035417]
[1617725697067,31.1,2091.6,2091.3,2.8863]
[1617725697366,31.1,2091.6,2091.1,5.95]
[1617725697367,2.0,2091.5,2091.1,5.95]
[1617725697569,33.1,2091.5,2088.2,14.33345565]
[1617725697767,45.6262,2091.5,2088.2,14.33345565]
[1617725697966,45.6262,2091.5,2090.0,2.90695]
[1617725698366,45.6262,2091.5,2090.1,5.88]
[1617725699571,45.6262,2091.5,2090.1,2.6112]
[1617725699769,45.6262,2091.5,2089.1,5.83]
[1617725699971,45.6262,2091.5,2089.6,2.90695]
[1617725700169,45.6262,2091.5,2090.2,5.91]
[1617725700170,70.3207,2090.7,2090.2,5.91]
[1617725700369,70.3207,2090.7,2089.7,2.73]
[1617725700370,103.713,2090.7,2089.7,2.73]
[1617725700769,103.713,2090.7,2090.3,5.91]
[1617725700969,103.713,2090.7,2089.7,5.9]
[1617725701372,73.713,2090.7,2090.4,5.75]
[1617725701572,73.713,2090.7,2089.7,6.01]
[1617725701970,73.713,2090.7,2090.5,5.77]
[1617725702170,73.713,2090.7,2089.0,7.77]
[1617725702370,13.3262,2090.6,2089.8,0.44]
[1617725702570,13.3262,2090.6,2089.7,0.38]
[1617725702771,13.3262,2090.6,2089.1,5.99]
[1617725702971,13.3262,2090.6,2089.9,2.44]
[1617725703171,13.3262,2090.6,2089.8,0.47]
[1617725703370,13.3262,2090.6,2089.2,5.74]
[1617725703572,13.3262,2090.6,2090.0,5.9]
[1617725703771,13.3262,2090.6,2089.9,0.03]
[1617725703970,13.3262,2090.6,2089.3,5.87]
[1617725703971,2.90695,2090.0,2089.2,2.90695]
[1617725704371,2.90695,2090.0,2089.3,6.03]
[1617725705971,2.90695,2090.0,2089.9,2.90695]
[1617725706471,2.90695,2090.0,2089.9,8.84695]
[1617725706671,2.90695,2090.0,2089.9,8.80295]
[1617725707972,2.90695,2090.4,2089.9,8.80295]
[1617725709979,2.90695,2090.4,2090.3,2.90695]
[1617725710381,2.90695,2090.4,2090.3,8.70695]
[1617725711783,1.1,2091.6,2090.3,8.70695]
[1617725711985,1.1,2091.6,2090.8,2.90695]
[1617725712383,1.1,2091.6,2090.9,5.88]
[1617725712984,2.0671,2091.6,2090.3,5.84]
[1617725713184,2.0671,2091.6,2089.8,2.0]
[1617725713185,2.0671,2091.6,2089.9,0.09]
[1617725713386,1.1,2091.6,2091.0,5.17]
[1617725713584,1.1,2091.6,2090.4,5.74]
[1617725713785,1.1,2091.6,2090.1,4.3456]
[1617725713986,1.1,2091.6,2091.1,5.84]
[1617725714184,1.1,2091.6,2090.9,2.90695]
[1617725714384,1.1,2091.6,2091.2,6.01]
[1617725714784,1.1,2091.6,2090.9,2.90695]
[1617725714984,1.1,2091.6,2091.3,5.86]
[1617725715386,1.1,2091.6,2091.0,5.87]
[1617725715588,1.1,2091.6,2090.2,2.99]
[1617725715589,1.1,2091.6,2091.4,6.01]
[1617725715785,1.1,2091.6,2091.4,4.6163]
[1617725715986,2.90695,2091.5,2091.1,5.81]
[1617725716185,2.90695,2091.5,2091.4,2.9118]
[1617725716587,2.90695,2091.5,2091.4,6.2118]
[1617725717987,2.90695,2091.5,2091.4,9.11875]
[1617725718790,2.90695,2091.5,2091.4,11.11875]
[1617725719191,55.7741,2092.6,2091.4,11.11875]
[1617725720197,55.7741,2092.6,2092.1,2.90695]
[1617725720396,55.7741,2092.6,2092.1,5.68775]
[1617725720595,55.7741,2092.6,2092.2,5.93]
[1617725721996,55.7741,2092.6,2092.3,2.0]
[1617725722196,13.6952,2092.8,2092.4,2.90695]
[1617725722398,12.7312,2092.8,2092.4,8.83695]
[1617725722598,1.1,2093.5,2092.4,8.83695]
[1617725723400,56.0231,2094.0,2092.4,8.83695]
[1617725723599,57.1231,2094.0,2092.5,2.0]
[1617725724002,57.1231,2094.0,2092.6,5.93]
[1617725724205,57.1231,2094.0,2092.6,8.4835]
[1617725724401,57.1231,2094.0,2092.6,2.5535]
[1617725724805,57.1231,2094.0,2092.7,5.88]
[1617725725403,87.1231,2094.0,2092.7,5.88]
[1617725725603,87.1231,2094.0,2092.5,5.79]
[1617725725803,89.1335,2094.0,2092.5,5.79]
[1617725726003,2.0,2093.9,2092.8,5.9]
[1617725726203,3.1,2093.9,2092.5,5.89]
[1617725726603,3.1,2093.9,2092.9,5.74]
[1617725726804,3.1,2093.9,2092.5,5.78]
[1617725727005,1.1,2093.9,2092.5,5.78]
[1617725727205,1.1,2093.9,2093.0,5.81]
[1617725727405,1.1,2093.9,2092.4,2.90695]
[1617725727406,1.1,2093.9,2092.6,2.6533]
[1617725727708,1.1,2093.9,2093.1,5.91]
[1617725728107,2.90695,2093.2,2092.7,2.0]
[1617725728507,2.90695,2093.2,2092.7,5.84]
[1617725729109,2.90695,2093.2,2092.5,5.81]
[1617725729510,2.90695,2093.2,2092.8,5.93]
[1617725729711,2.90695,2093.2,2092.8,3.0008]
[1617725730113,2.90695,2093.2,2093.1,2.90695]
[1617725730510,2.90695,2093.2,2093.1,8.92695]
[1617725735614,5.42255,2093.2,2093.1,8.92695]
[1617725735814,2.0539,2094.2,2093.1,8.92695]
[1617725735815,2.8057,2094.0,2093.1,8.92695]
[1617725736215,2.90695,2094.6,2093.9,2.90695]
[1617725736416,2.90695,2094.6,2093.9,5.28735]
[1617725736614,2.90695,2094.6,2094.0,5.95]
[1617725738117,2.90695,2094.1,2094.0,5.95]
[1617725738316,5.47075,2094.1,2094.0,5.95]
[1617725738516,5.47075,2094.1,2093.8,3.02]
[1617725738919,5.47075,2094.1,2094.0,5.94]
[1617725739117,5.47075,2094.1,2093.8,5.76]
[1617725739518,5.47075,2094.1,2094.0,6.02]
[1617725739718,5.47075,2094.1,2093.8,5.79]
[1617725739918,5.47075,2094.1,2094.0,5.75]
[1617725740118,5.47075,2094.1,2094.0,8.65695]
[1617725740318,5.47075,2094.1,2094.0,2.90695]
[1617725740520,5.47075,2094.1,2092.3,2.0]
[1617725740521,5.47075,2094.1,2093.9,5.75]
[1617725740718,5.47075,2094.1,2094.0,5.66]
[1617725740918,5.47075,2094.1,2091.6,2.0]
[1617725741119,5.47075,2094.1,2093.9,5.85]
[1617725741319,5.47075,2094.1,2091.8,3.3]
[1617725741320,5.47075,2094.1,2094.0,5.6]
[1617725741519,5.47075,2094.1,2091.8,2.0]
[1617725741721,5.47075,2094.1,2092.5,5.75]
[1617725741920,5.47075,2094.1,2094.0,6.01]
[1617725742120,7.53505,2094.1,2093.3,2.90695]
[1617725742321,6.57075,2094.1,2093.3,2.90695]
[1617725742521,6.57075,2094.1,2094.0,5.94]
[1617725742720,6.57075,2094.1,2093.4,6.01]
[1617725742921,6.57075,2094.1,2093.3,2.90695]
[1617725743223,6.57075,2094.1,2093.4,5.97]
[1617725744322,2.90695,2093.5,2093.4,5.97]
[1617725744724,2.0,2094.6,2093.4,5.97]
[1617725744924,69.1722,2094.9,2093.4,5.97]
[1617725744925,1.1,2094.8,2093.4,8.5285]
[1617725745224,70.2722,2094.9,2093.4,8.5285]
[1617725745524,2.0,2094.8,2093.4,8.5285]
[1617725745726,3.1,2094.8,2093.4,8.5285]
[1617725746225,2.90695,2093.5,2093.4,8.5285]
[1617725746925,3.1,2094.8,2093.4,8.5285]
[1617725747126,1.1,2094.8,2093.4,8.5285]
[1617725748328,1.1,2094.8,2093.7,2.90695]
[1617725748727,1.1,2094.8,2093.8,5.86]
[1617725750329,1.1,2094.8,2094.5,2.90695]
[1617725750729,1.1,2094.8,2094.6,5.99]
[1617725751430,1.1,2094.8,2093.6,2.4022]
[1617725751631,1.1,2094.8,2094.7,5.99]
[1617725752031,1.1,2094.8,2093.7,5.98]
[1617725752231,1.1,2094.8,2094.7,5.92]
[1617725752632,1.1,2094.8,2094.3,3.43]
[1617725752831,1.1,2094.8,2094.7,5.58]
[1617725753232,1.1,2094.8,2094.3,5.99]
[1617725753433,1.1,2094.8,2094.7,5.73]
[1617725753831,1.1,2094.8,2094.3,5.87]
[1617725754232,1.1,2094.8,2094.7,5.92]
[1617725754432,1.1,2094.8,2094.3,5.85]
[1617725754632,2.0523,2094.8,2094.3,5.85]
[1617725754833,1.1,2094.8,2094.7,5.99]
[1617725755035,1.1,2094.8,2094.4,5.08]
[1617725755234,3.1,2094.8,2094.4,5.08]
[1617725755434,3.1,2094.8,2094.7,5.8]
[1617725755634,3.1,2094.8,2094.5,5.91]
[1617725756037,3.1,2094.8,2094.7,5.88]
[1617725756238,6.00695,2094.8,2094.6,5.11]
[1617725756435,30.0,2094.7,2093.3,2.90695]
[1617725756635,2.0,2094.6,2093.3,2.90695]
[1617725756837,33.1,2094.6,2093.3,2.90695]
[1617725757036,33.1,2094.6,2091.8,2.0]
[1617725757237,74.4674,2094.5,2093.4,5.73]
[1617725757436,32.0,2094.4,2091.9,5.99]
[1617725757636,33.1,2094.4,2091.9,5.99]
[1617725757836,13.0647,2094.3,2093.5,5.82]
[1617725758037,13.0647,2094.3,2088.6,11.0864]
[1617725758038,32.0,2094.2,2091.9,5.98]
[1617725758236,33.1,2094.2,2092.6,2.90695]
[1617725758436,33.1,2094.2,2091.9,5.98]
[1617725758437,33.1,2094.2,2093.6,5.96]
[1617725758637,33.1,2094.2,2090.1,13.233]
[1617725758638,33.1,2094.2,2092.7,3.36]
[1617725758837,33.1,2094.2,2090.7,2.0]
[1617725759236,33.1,2094.2,2089.2,13.44470148]
[1617725759237,33.1,2094.2,2090.1,2.0]
[1617725759438,33.1,2094.2,2090.8,5.94]
[1617725759640,46.1758,2094.2,2090.2,3.06]
[1617725760039,46.1758,2094.2,2090.9,5.73]
[1617725760238,46.1758,2094.2,2092.1,2.90695]
[1617725760639,46.1758,2094.2,2092.2,3.92]
[1617725762341,2.90695,2092.3,2092.2,3.92]
[1617725762541,5.11715,2092.3,2092.2,3.92]
[1617725763546,5.11715,2092.3,2090.5,5.86]
[1617725763946,5.11715,2092.3,2092.2,5.97]
[1617725764146,5.11715,2092.3,2090.6,5.4]
[1617725764349,2.2102,2092.3,2092.2,6.02]
[1617725764746,1.1,2092.7,2091.4,5.08]
[1617725764946,1.1,2092.7,2092.2,5.97]
[1617725765347,2.0626,2092.7,2091.5,5.79]
[1617725765546,2.0626,2092.7,2092.3,5.86]
[1617725765547,6.7943,2092.7,2092.3,5.86]
[1617725765948,6.7943,2092.7,2091.6,5.93]
[1617725766349,2.90695,2091.7,2091.6,2.90695]
[1617725766749,2.90695,2091.7,2091.6,6.02]
[1617725767151,2.90695,2091.7,2089.6,5.81]
[1617725767550,2.90695,2091.7,2091.6,5.95]
[1617725767750,2.90695,2091.7,2089.7,2.0]
[1617725767950,16.53435,2091.7,2089.8,2.93]
[1617725768150,16.53435,2091.7,2091.6,5.74]
[1617725768350,16.53435,2091.7,2089.7,2.0]
[1617725768351,16.53435,2091.7,2091.0,2.90695]
[1617725768751,18.53435,2091.7,2091.6,5.81]
[1617725768953,18.53435,2091.7,2091.1,6.02]
[1617725769153,18.53435,2091.7,2089.8,5.75]
[1617725769352,18.53435,2091.7,2091.6,5.79]
[1617725769551,18.53435,2091.7,2091.2,5.9]
[1617725769752,18.53435,2091.7,2089.7,2.0]
[1617725769753,18.53435,2091.7,2089.9,5.8]
[1617725769951,19.49225,2091.7,2091.6,5.76]
[1617725770151,18.53435,2091.7,2091.3,5.68]
[1617725770352,2.90695,2091.4,2091.3,5.68]
[1617725770552,2.90695,2091.4,2090.6,2.90695]
[1617725770751,2.90695,2091.4,2091.3,0.69]
[1617725771151,2.90695,2091.4,2090.7,5.41]
[1617725771352,2.90695,2091.4,2091.3,5.92]
[1617725771652,2.90695,2091.4,2090.7,5.94]
[1617725772053,2.90695,2091.4,2091.3,5.98]
[1617725772252,2.90695,2091.4,2090.7,6.0]
[1617725772452,13.6274,2091.7,2091.0,2.90695]
[1617725772654,13.6274,2091.7,2091.3,5.86]
[1617725773054,2.0,2091.6,2091.1,2.72]
[1617725773254,2.0,2091.6,2091.4,5.77]
[1617725773454,15.6719,2091.7,2091.2,2.91]
[1617725773654,13.6274,2091.7,2091.2,2.91]
[1617725773854,13.6274,2091.7,2090.0,2.2773]
[1617725774054,13.6274,2091.7,2090.1,0.15]
[1617725774256,14.5843,2091.7,2091.3,2.69]
[1617725774454,2.90695,2091.4,2090.6,2.90695]
[1617725774855,2.90695,2091.4,2090.7,3.82]
[1617725776457,2.90695,2091.4,2091.3,2.90695]
[1617725776859,2.90695,2091.4,2091.3,8.68695]
[1617725780159,2.90695,2091.4,2091.3,5.78]
[1617725780559,2.90695,2091.4,2090.8,2.90695]
[1617725780758,2.90695,2091.4,2090.9,2.99]
[1617725780960,2.90695,2091.4,2091.3,5.74]
[1617725781159,2.90695,2091.4,2090.8,2.90695]
[1617725781359,2.90695,2091.4,2091.0,5.93]
[1617725781560,2.90695,2091.4,2091.3,5.9]
[1617725781759,2.90695,2091.4,2090.8,2.90695]
[1617725781961,2.90695,2091.4,2091.0,5.77]
[1617725782159,2.90695,2091.4,2091.3,5.93]
[1617725782359,2.90695,2091.4,2091.1,2.90695]
[1617725782563,2.90695,2091.4,2091.1,8.82695]
[1617725782760,2.90695,2091.4,2091.3,5.75]
[1617725782961,2.90695,2091.4,2091.1,2.90695]
[1617725783160,2.90695,2091.4,2091.2,5.9]
[1617725783360,2.90695,2091.4,2091.1,2.90695]
[1617725783361,2.90695,2091.4,2091.3,5.9]
[1617725783560,2.90695,2091.4,2091.1,2.90695]
[1617725783762,2.90695,2091.4,2091.2,5.96]
[1617725783959,2.90695,2091.4,2091.3,5.87]
[1617725784160,2.90695,2091.4,2091.1,2.90695]
[1617725784361,2.90695,2091.4,2091.2,5.89]
[1617725784562,2.90695,2091.4,2091.3,5.75]
[1617725784760,2.90695,2091.4,2091.1,2.90695]
[1617725784960,2.90695,2091.4,2091.2,5.84]
[1617725785362,2.90695,2091.4,2089.9,5.76]
[1617725785761,2.90695,2091.4,2091.3,5.75]
[1617725785960,2.90695,2091.4,2089.8,3.51]
[1617725785961,2.90695,2091.4,2090.2,2.8874]
[1617725786362,2.90695,2091.4,2091.3,5.87]
[1617725786561,13.6274,2091.7,2091.1,2.90695]
[1617725786963,13.6274,2091.7,2091.3,5.75]
[1617725787165,13.6274,2091.7,2091.2,6.0]
[1617725787365,13.6274,2091.7,2091.1,2.90695]
[1617725787565,13.6274,2091.7,2091.4,5.87]
[1617725787765,13.6274,2091.7,2091.2,5.97]
[1617725787966,13.6274,2091.7,2088.0,7.03985519]
[1617725788165,13.6274,2091.7,2091.5,5.91]
[1617725788365,13.6274,2091.7,2091.3,5.92]
[1617725788565,2.90695,2091.4,2090.9,2.90695]
[1617725788967,2.90695,2091.4,2091.0,0.02]
[1617725789770,2.90695,2091.4,2091.0,1.9763]
[1617725790469,2.90695,2091.4,2091.3,2.90695]
[1617725790869,2.90695,2091.4,2091.3,8.83695]
[1617725791570,2.90695,2091.4,2091.3,5.93]
[1617725791871,2.90695,2091.4,2091.1,6.0]
[1617725792271,2.90695,2091.4,2090.3,5.79]
[1617725792469,13.6274,2091.7,2091.2,2.90695]
[1617725792669,13.6274,2091.7,2091.2,8.70695]
[1617725792870,13.6274,2091.7,2091.2,2.90695]
[1617725793269,13.6274,2091.7,2091.3,5.85]
[1617725794471,2.90695,2091.4,2091.3,5.85]
[1617725794669,5.10255,2091.4,2091.3,5.85]
[1617725795672,2.90695,2091.4,2091.3,5.85]
[1617725797075,54.9142,2091.9,2091.3,5.85]
[1617725797278,54.9142,2091.9,2091.3,7.8472]
[1617725797876,0.9459,2092.9,2091.3,7.8472]
[1617725798479,0.9459,2092.9,2092.2,2.90695]
[1617725798676,0.9459,2092.9,2092.2,5.54995]
[1617725798876,0.9459,2092.9,2092.3,5.78]
[1617725800478,2.0459,2092.9,2092.3,5.78]
[1617725800678,2.90695,2092.4,2092.3,5.78]
[1617725801280,12.8129,2093.0,2092.3,5.78]
[1617725802680,2.90695,2092.4,2092.3,5.78]
[1617725803484,2.90695,2092.4,2091.4,5.94]
[1617725803882,2.90695,2092.4,2092.3,5.8]
[1617725804083,1.1,2093.0,2091.8,2.7092]
[1617725804283,1.1,2093.1,2091.8,2.7092]
[1617725804484,60.673,2093.5,2092.3,5.79]
[1617725804683,60.673,2093.5,2093.1,2.90695]
[1617725804884,60.673,2093.5,2093.1,5.54225]
[1617725805083,60.673,2093.5,2093.2,5.81]
[1617725805484,13.0852,2093.9,2093.2,5.81]
[1617725806286,14.026,2093.9,2093.2,5.81]
[1617725806485,1.1,2094.3,2093.2,5.81]
[1617725806685,1.1,2094.3,2093.6,2.90695]
[1617725806887,1.1,2094.3,2093.6,5.16435]
[1617725807088,16.848,2094.7,2093.7,5.93]
[1617725807687,14.848,2094.7,2093.7,5.93]
[1617725808491,16.848,2094.7,2093.7,5.93]
[1617725808691,14.848,2094.7,2093.8,2.90695]
[1617725809091,14.848,2094.7,2093.9,5.88]
[1617725809891,2.0,2094.6,2093.9,5.88]
[1617725810092,3.1,2094.6,2093.9,5.88]
[1617725810695,2.90695,2094.0,2093.9,5.88]
[1617725812096,2.90695,2094.0,2092.4,5.99]
[1617725812496,4.00695,2094.0,2093.9,5.8]
[1617725812697,4.00695,2094.0,2093.4,2.90695]
[1617725812896,4.00695,2094.0,2092.5,6.0]
[1617725813097,4.00695,2094.0,2093.9,3.86]
[1617725813298,6.00695,2094.0,2093.5,0.1]
[1617725813499,13.6051,2093.9,2092.6,0.29]
[1617725813698,13.6051,2093.9,2093.6,0.34]
[1617725813899,14.7051,2093.9,2093.6,0.34]
[1617725814099,14.7051,2093.9,2092.7,0.1]
[1617725814304,14.7051,2093.9,2093.7,0.02]
[1617725814505,13.6051,2093.9,2093.7,0.02]
[1617725814705,13.6051,2093.9,2093.4,2.90695]
[1617725815105,13.6051,2093.9,2093.5,5.85]
[1617725816706,2.90695,2093.6,2093.5,5.85]
[1617725820714,3.86665,2093.6,2093.5,5.85]
[1617725820914,2.90695,2093.6,2093.5,5.85]
[1617725825718,2.90695,2093.6,2092.0,5.84]
[1617725825917,2.90695,2093.6,2092.0,7.84]
[1617725826117,2.90695,2093.6,2093.5,5.81]
[1617725826317,2.90695,2093.6,2092.1,4.95]
[1617725826522,2.90695,2093.6,2092.2,2.0]
[1617725826717,17.4631,2093.9,2093.5,5.96]
[1617725826918,17.4631,2093.9,2093.1,2.90695]
[1617725827117,17.4631,2093.9,2093.2,4.69]
[1617725827318,17.4631,2093.9,2093.6,5.23]
[1617725827519,17.4631,2093.9,2093.1,2.90695]
[1617725827719,17.4631,2093.9,2093.3,5.81]
[1617725827919,13.6051,2093.9,2093.7,5.82]
[1617725828120,13.6051,2093.9,2093.1,2.90695]
[1617725828319,13.6051,2093.9,2093.4,5.86]
[1617725828519,13.6051,2093.9,2093.8,5.89]
[1617725828719,16.51205,2093.9,2093.2,2.77]
[1617725828919,16.51205,2093.9,2093.1,5.57895]
[1617725829121,16.51205,2093.9,2093.8,5.81]
[1617725829324,16.51205,2093.9,2093.2,5.93]
[1617725829519,16.51205,2093.9,2093.1,2.90695]
[1617725829922,17.61205,2093.9,2093.2,5.95]
[1617725830119,17.61205,2093.9,2093.2,8.3494]
[1617725830418,2.90695,2093.9,2093.2,8.3494]
[1617725830820,0.9573,2094.1,2093.2,8.3494]
[1617725830821,0.9573,2094.1,2093.7,2.90695]
[1617725831020,0.9573,2094.1,2093.7,5.18745]
[1617725831221,0.9573,2094.1,2093.8,5.99]
[1617725831821,2.0573,2094.1,2093.3,5.93]
[1617725832021,0.9573,2094.1,2092.7,5.85]
[1617725832221,0.9573,2094.1,2093.9,5.74]
[1617725832421,0.9573,2094.1,2092.6,2.4006]
[1617725832422,0.9573,2094.1,2093.4,5.82]
[1617725832621,0.9573,2094.1,2092.8,5.75]
[1617725832822,0.9573,2094.1,2094.0,5.89]
[1617725833023,0.9573,2094.1,2093.4,2.90695]
[1617725833221,3.6048,2094.1,2093.5,5.42]
[1617725833421,6.7048,2094.1,2094.0,5.93]
[1617725833621,6.7048,2094.1,2093.4,2.90695]
[1617725833824,6.7048,2094.1,2093.5,5.81]
[1617725834023,6.7048,2094.1,2094.0,5.87]
[1617725834224,6.7048,2094.1,2093.4,2.90695]
[1617725834423,6.7048,2094.1,2093.5,5.85]
[1617725834627,6.7048,2094.1,2094.0,5.86]
[1617725834823,9.61175,2094.1,2093.1,2.90695]
[1617725835027,9.61175,2094.1,2093.5,6.01]
[1617725835224,9.61175,2094.1,2093.2,6.0]
[1617725836726,2.90695,2093.3,2093.2,6.0]
[1617725839228,2.90695,2093.3,2091.1,5.97]
[1617725839425,2.90695,2093.3,2091.2,2.0]
[1617725839626,2.90695,2093.3,2093.2,5.87]
[1617725839826,2.90695,2093.3,2091.3,2.51]
[1617725840026,2.90695,2093.3,2091.4,2.0]
[1617725840227,2.90695,2093.3,2093.2,5.87]
[1617725840427,2.90695,2093.3,2091.5,0.45]
[1617725840829,3.0021,2093.5,2093.2,5.88]
[1617725841028,3.0021,2093.5,2092.5,2.90695]
[1617725841228,3.0021,2093.5,2092.6,5.92]
[1617725841428,2.0,2093.4,2093.3,5.84]
[1617725841628,3.1,2093.4,2093.3,5.84]
[1617725841832,3.1,2093.4,2092.7,5.77]
[1617725842031,3.1,2093.4,2093.3,5.78]
[1617725842328,3.1,2093.4,2091.5,2.0]